[Event "Early-Titled-Tuesday-Blitz-October-03-2023"]
[Site "Chess.com"]
[Date "2023.10.03"]
[Round "10"]
[White "dennisodessa"]
[Black "IsuruAlahakoon"]
[Result "0-1"]
[WhiteElo "2471"]
[BlackElo "2339"]
[TimeControl "180+1"]
[EndTime "9:53:56 PDT"]
[Termination "IsuruAlahakoon won on time"]

1. d4 {[%clk 0:03:00]} 1... d5 {[%clk 0:02:57.1]} 2. c4 {[%clk 0:02:59.9]} 2...
e6 {[%clk 0:02:57.1]} 3. Nc3 {[%clk 0:02:52]} 3... Nf6 {[%clk 0:02:56.8]} 4.
cxd5 {[%clk 0:02:52.2]} 4... exd5 {[%clk 0:02:57.7]} 5. Bg5 {[%clk 0:02:52.6]}
5... c6 {[%clk 0:02:57.4]} 6. e3 {[%clk 0:02:51.8]} 6... Bd6 {[%clk 0:02:57]} 7.
Bd3 {[%clk 0:02:51.5]} 7... O-O {[%clk 0:02:55.5]} 8. Qc2 {[%clk 0:02:51.7]}
8... h6 {[%clk 0:02:54.9]} 9. Bh4 {[%clk 0:02:51.5]} 9... Re8 {[%clk 0:02:54.9]}
10. Nge2 {[%clk 0:02:51]} 10... a5 {[%clk 0:02:53.1]} 11. a3 {[%clk 0:02:49.7]}
11... Na6 {[%clk 0:02:52.3]} 12. h3 {[%clk 0:02:27.9]} 12... Nc7 {[%clk
0:02:50.2]} 13. g4 {[%clk 0:02:23.7]} 13... Ne6 {[%clk 0:02:49]} 14. O-O-O
{[%clk 0:02:19]} 14... b5 {[%clk 0:02:47.9]} 15. f4 {[%clk 0:02:12.9]} 15... b4
{[%clk 0:02:45.8]} 16. Nb1 {[%clk 0:02:13.4]} 16... c5 {[%clk 0:02:42.7]} 17. g5
{[%clk 0:02:01.8]} 17... Nd7 {[%clk 0:02:30.1]} 0-1

[Event "Early-Titled-Tuesday-Blitz-October-03-2023"]
[Site "Chess.com"]
[Date "2023.10.03"]
[Round "10"]
[White "Marcin"]
[Black "vedantgoswami"]
[Result "1-0"]
[WhiteElo "2508"]
[BlackElo "2396"]
[TimeControl "180+1"]
[EndTime "9:54:03 PDT"]
[Termination "Marcin won by resignation"]

1. Nf3 {[%clk 0:03:00.9]} 1... c6 {[%clk 0:02:59]} 2. c4 {[%clk 0:03:00]} 2...
d5 {[%clk 0:02:52.6]} 3. g3 {[%clk 0:03:00.5]} 3... d4 {[%clk 0:02:50]} 4. e3
{[%clk 0:02:59.4]} 4... dxe3 {[%clk 0:02:47.9]} 5. fxe3 {[%clk 0:02:57.5]} 5...
Nf6 {[%clk 0:02:44.3]} 6. Bg2 {[%clk 0:02:57.4]} 6... g6 {[%clk 0:02:42.7]} 7.
O-O {[%clk 0:02:57.9]} 7... Bg7 {[%clk 0:02:43.2]} 8. d4 {[%clk 0:02:56.3]} 8...
O-O {[%clk 0:02:43.4]} 9. Nc3 {[%clk 0:02:56.8]} 9... Nbd7 {[%clk 0:02:41.1]}
10. e4 {[%clk 0:02:54.5]} 10... e5 {[%clk 0:02:38.3]} 11. d5 {[%clk 0:02:54.5]}
11... Nc5 {[%clk 0:02:33]} 12. Qe2 {[%clk 0:02:49.7]} 12... cxd5 {[%clk
0:02:25]} 13. cxd5 {[%clk 0:02:48.9]} 13... b6 {[%clk 0:02:22.9]} 14. Kh1 {[%clk
0:02:46.6]} 14... Ba6 {[%clk 0:02:22.1]} 15. Nb5 {[%clk 0:02:45.2]} 15... Ncxe4
{[%clk 0:02:10.5]} 16. a4 {[%clk 0:02:42.5]} 16... Re8 {[%clk 0:02:06.5]} 17.
Ng5 {[%clk 0:02:32.5]} 17... Nd6 {[%clk 0:02:02.1]} 18. Bd2 {[%clk 0:02:28.4]}
18... Qd7 {[%clk 0:01:57.2]} 19. Bh3 {[%clk 0:02:17.6]} 19... Qe7 {[%clk
0:01:49.2]} 20. Bb4 {[%clk 0:02:14.8]} 20... Bxb5 {[%clk 0:01:45.3]} 21. axb5
{[%clk 0:02:13.9]} 21... Nxd5 {[%clk 0:01:44.8]} 22. Bxd6 {[%clk 0:01:58.3]}
22... Qxg5 {[%clk 0:01:43.4]} 23. Bg2 {[%clk 0:01:57.8]} 23... e4 {[%clk
0:01:41.5]} 24. Rad1 {[%clk 0:01:53.1]} 24... Rad8 {[%clk 0:01:37]} 25. h4
{[%clk 0:01:44]} 25... Qe3 {[%clk 0:01:30.3]} 26. Qc4 {[%clk 0:01:33.4]} 26...
Rxd6 {[%clk 0:01:25.7]} 27. Rxd5 {[%clk 0:01:32.7]} 27... Rxd5 {[%clk
0:01:25.6]} 28. Qxd5 {[%clk 0:01:33.6]} 28... Qxg3 {[%clk 0:01:25.3]} 29. Qxf7+
{[%clk 0:01:33]} 1-0

[Event "Early-Titled-Tuesday-Blitz-October-03-2023"]
[Site "Chess.com"]
[Date "2023.10.03"]
[Round "10"]
[White "Al_Shima"]
[Black "Yushko_Olga"]
[Result "0-1"]
[WhiteElo "2330"]
[BlackElo "2113"]
[TimeControl "180+1"]
[EndTime "9:54:17 PDT"]
[Termination "Yushko_Olga won on time"]

1. b3 {[%clk 0:03:00.9]} 1... e6 {[%clk 0:03:00]} 2. Bb2 {[%clk 0:03:00.9]} 2...
f5 {[%clk 0:02:59.5]} 3. e3 {[%clk 0:02:59.2]} 3... Nf6 {[%clk 0:02:56.8]} 4. h3
{[%clk 0:02:59.4]} 4... Be7 {[%clk 0:02:57.1]} 5. g4 {[%clk 0:02:59.5]} 5... d6
{[%clk 0:02:51.2]} 6. g5 {[%clk 0:02:46.9]} 6... Ne4 {[%clk 0:02:47.6]} 7. Bxg7
{[%clk 0:02:44.1]} 7... Rg8 {[%clk 0:02:47.8]} 8. Qh5+ {[%clk 0:02:44]} 8... Kd7
{[%clk 0:02:47.7]} 9. Bb2 {[%clk 0:02:38.1]} 9... Rxg5 {[%clk 0:02:14.1]} 10.
Qxh7 {[%clk 0:02:35.9]} 10... Nc6 {[%clk 0:01:50.7]} 0-1

[Event "Early-Titled-Tuesday-Blitz-October-03-2023"]
[Site "Chess.com"]
[Date "2023.10.03"]
[Round "10"]
[White "sokidze"]
[Black "dropstoneDP"]
[Result "1-0"]
[WhiteElo "2813"]
[BlackElo "3086"]
[TimeControl "180+1"]
[EndTime "9:54:27 PDT"]
[Termination "sokidze won by checkmate"]

1. d4 {[%clk 0:03:00.9]} 1... Nf6 {[%clk 0:02:59.6]} 2. c4 {[%clk 0:03:01.1]}
2... e6 {[%clk 0:02:59.6]} 3. Nc3 {[%clk 0:03:01.5]} 3... Bb4 {[%clk 0:02:58.5]}
4. e3 {[%clk 0:03:02.1]} 4... O-O {[%clk 0:02:53.9]} 5. Bd2 {[%clk 0:03:02.4]}
5... c5 {[%clk 0:02:52.9]} 6. a3 {[%clk 0:03:01.2]} 6... Bxc3 {[%clk 0:02:53.1]}
7. Bxc3 {[%clk 0:03:02.1]} 7... Ne4 {[%clk 0:02:53.5]} 8. Ne2 {[%clk 0:03:02.3]}
8... b6 {[%clk 0:02:53.9]} 9. d5 {[%clk 0:03:01]} 9... Ba6 {[%clk 0:02:53.8]}
10. b3 {[%clk 0:02:57.8]} 10... b5 {[%clk 0:02:51.7]} 11. Qd3 {[%clk 0:02:56.9]}
11... Nxc3 {[%clk 0:02:48.9]} 12. Nxc3 {[%clk 0:02:56.9]} 12... bxc4 {[%clk
0:02:49.2]} 13. bxc4 {[%clk 0:02:57.2]} 13... exd5 {[%clk 0:02:49.8]} 14. Qxd5
{[%clk 0:02:56.5]} 14... Nc6 {[%clk 0:02:49.8]} 15. Be2 {[%clk 0:02:56.4]} 15...
Qa5 {[%clk 0:02:44.2]} 16. Rc1 {[%clk 0:02:56.6]} 16... Qxa3 {[%clk 0:02:36.9]}
17. O-O {[%clk 0:02:56.8]} 17... Rad8 {[%clk 0:02:31.3]} 18. Qd2 {[%clk
0:02:55.6]} 18... Qa5 {[%clk 0:02:12.2]} 19. Ra1 {[%clk 0:02:54.2]} 19... Qb6
{[%clk 0:02:12.7]} 20. Nd5 {[%clk 0:02:50.4]} 20... Qb7 {[%clk 0:02:13.1]} 21.
Qa2 {[%clk 0:02:25.7]} 21... Bxc4 {[%clk 0:02:11.3]} 22. Bxc4 {[%clk 0:02:24.1]}
22... Ne5 {[%clk 0:02:10.6]} 23. Rfb1 {[%clk 0:02:19.6]} 23... Qa8 {[%clk
0:02:10.7]} 24. Ne7+ {[%clk 0:02:15.1]} 24... Kh8 {[%clk 0:02:10.9]} 25. Bd5
{[%clk 0:02:15.4]} 25... Nc6 {[%clk 0:02:10.7]} 26. Nxc6 {[%clk 0:02:13]} 26...
dxc6 {[%clk 0:02:11.6]} 27. Bxf7 {[%clk 0:02:12.8]} 27... Qc8 {[%clk 0:02:08.6]}
28. Rd1 {[%clk 0:01:54.2]} 28... Rxd1+ {[%clk 0:02:03.9]} 29. Rxd1 {[%clk
0:01:55.1]} 29... Qg4 {[%clk 0:02:04.2]} 30. Rc1 {[%clk 0:01:53]} 30... h6
{[%clk 0:01:59.1]} 31. Bc4 {[%clk 0:01:47.5]} 31... Rd8 {[%clk 0:01:55.8]} 32.
g3 {[%clk 0:01:40.2]} 32... h5 {[%clk 0:01:52.2]} 33. Qe2 {[%clk 0:01:37.7]}
33... Qf5 {[%clk 0:01:48.4]} 34. Rd1 {[%clk 0:01:37.1]} 34... Ra8 {[%clk
0:01:38.3]} 35. Bd3 {[%clk 0:01:36.2]} 35... Qf7 {[%clk 0:01:37.9]} 36. Rc1
{[%clk 0:01:30.9]} 36... a5 {[%clk 0:01:37.9]} 37. Rxc5 {[%clk 0:01:31]} 37...
g6 {[%clk 0:01:36.2]} 38. Qb2+ {[%clk 0:01:29.8]} 38... Kh7 {[%clk 0:01:31.8]}
39. Rxh5+ {[%clk 0:01:28.1]} 39... Kg8 {[%clk 0:01:32.4]} 40. Rh8# {[%clk
0:01:27.3]} 1-0

[Event "Early-Titled-Tuesday-Blitz-October-03-2023"]
[Site "Chess.com"]
[Date "2023.10.03"]
[Round "10"]
[White "arminmusovic"]
[Black "stepanosinovsky"]
[Result "0-1"]
[WhiteElo "2489"]
[BlackElo "2397"]
[TimeControl "180+1"]
[EndTime "9:54:51 PDT"]
[Termination "stepanosinovsky won by resignation"]

1. e4 {[%clk 0:03:00.9]} 1... e5 {[%clk 0:02:59.6]} 2. Nf3 {[%clk 0:03:00.8]}
2... Nc6 {[%clk 0:03:00]} 3. Nc3 {[%clk 0:03:01.4]} 3... Nf6 {[%clk 0:02:59.6]}
4. d4 {[%clk 0:03:01.8]} 4... exd4 {[%clk 0:02:58.4]} 5. Nd5 {[%clk 0:03:02.4]}
5... d6 {[%clk 0:02:23.9]} 6. Bc4 {[%clk 0:02:58.6]} 6... Ne5 {[%clk 0:02:15.4]}
7. Qxd4 {[%clk 0:02:51.5]} 7... Nxc4 {[%clk 0:01:38.5]} 8. Qxc4 {[%clk
0:02:52.4]} 8... Nxd5 {[%clk 0:01:35.8]} 9. exd5 {[%clk 0:02:50.4]} 9... Be7
{[%clk 0:01:30.4]} 10. O-O {[%clk 0:02:50.3]} 10... O-O {[%clk 0:01:30.7]} 11.
Re1 {[%clk 0:02:50.4]} 11... Bf6 {[%clk 0:01:25.5]} 12. Qb3 {[%clk 0:02:49.7]}
12... b6 {[%clk 0:01:20.1]} 13. c4 {[%clk 0:02:42.7]} 13... a5 {[%clk
0:01:19.4]} 14. h3 {[%clk 0:02:41.9]} 14... a4 {[%clk 0:01:19.4]} 15. Qa3 {[%clk
0:02:31.9]} 15... Bd7 {[%clk 0:00:43.1]} 16. Be3 {[%clk 0:02:24.4]} 16... Re8
{[%clk 0:00:34.8]} 17. Bd4 {[%clk 0:02:19.7]} 17... h6 {[%clk 0:00:24.9]} 18.
Qc3 {[%clk 0:02:17.4]} 18... Bxd4 {[%clk 0:00:19.4]} 19. Qxd4 {[%clk 0:02:17.8]}
19... a3 {[%clk 0:00:17.5]} 20. b3 {[%clk 0:02:16.4]} 20... Bf5 {[%clk
0:00:13.4]} 21. g4 {[%clk 0:02:15.3]} 21... Bg6 {[%clk 0:00:11.8]} 22. Rxe8+
{[%clk 0:02:10.3]} 22... Qxe8 {[%clk 0:00:11.7]} 23. Re1 {[%clk 0:02:11]} 23...
Qd7 {[%clk 0:00:11.5]} 24. Kg2 {[%clk 0:02:09.7]} 24... Re8 {[%clk 0:00:10.9]}
25. Rxe8+ {[%clk 0:02:09.5]} 25... Qxe8 {[%clk 0:00:11.8]} 26. Qe3 {[%clk
0:01:56.9]} 26... Qxe3 {[%clk 0:00:10.1]} 27. fxe3 {[%clk 0:01:57.8]} 27... Bb1
{[%clk 0:00:09.7]} 28. Nd2 {[%clk 0:01:58.5]} 28... Bxa2 {[%clk 0:00:10.1]} 29.
Kf2 {[%clk 0:01:59.3]} 29... Bb1 {[%clk 0:00:10.5]} 30. Ke2 {[%clk 0:01:54.1]}
30... a2 {[%clk 0:00:10.2]} 31. Nxb1 {[%clk 0:01:51.4]} 31... axb1=Q {[%clk
0:00:10.5]} 32. Kf3 {[%clk 0:01:52.3]} 0-1

[Event "Early-Titled-Tuesday-Blitz-October-03-2023"]
[Site "Chess.com"]
[Date "2023.10.03"]
[Round "10"]
[White "azikom"]
[Black "Kotofeyca"]
[Result "1-0"]
[WhiteElo "2587"]
[BlackElo "2416"]
[TimeControl "180+1"]
[EndTime "9:54:57 PDT"]
[Termination "azikom won by resignation"]

1. d4 {[%clk 0:03:00]} 1... d5 {[%clk 0:02:59.5]} 2. Nf3 {[%clk 0:02:59.6]} 2...
c6 {[%clk 0:03:00.4]} 3. Bf4 {[%clk 0:02:59.9]} 3... Nf6 {[%clk 0:02:58.9]} 4.
e3 {[%clk 0:03:00.2]} 4... Bg4 {[%clk 0:02:58.8]} 5. h3 {[%clk 0:02:59.3]} 5...
Bxf3 {[%clk 0:02:58.1]} 6. Qxf3 {[%clk 0:02:59]} 6... e6 {[%clk 0:02:59]} 7. Bd3
{[%clk 0:02:58.4]} 7... Qb6 {[%clk 0:02:58.1]} 8. b3 {[%clk 0:02:58.1]} 8... c5
{[%clk 0:02:57.6]} 9. c3 {[%clk 0:02:57.3]} 9... cxd4 {[%clk 0:02:54.2]} 10.
exd4 {[%clk 0:02:56.4]} 10... Bd6 {[%clk 0:02:54.3]} 11. Bg5 {[%clk 0:02:55.7]}
11... Nbd7 {[%clk 0:02:50.9]} 12. O-O {[%clk 0:02:53.8]} 12... Rc8 {[%clk
0:02:48.7]} 13. Re1 {[%clk 0:02:50.2]} 13... O-O {[%clk 0:02:48.1]} 14. Qd1
{[%clk 0:02:43.4]} 14... Bb8 {[%clk 0:02:38.9]} 15. g3 {[%clk 0:02:37.4]} 15...
h6 {[%clk 0:02:34.5]} 16. Bc1 {[%clk 0:02:35.6]} 16... e5 {[%clk 0:02:22.9]} 17.
Bb2 {[%clk 0:02:32.3]} 17... exd4 {[%clk 0:02:18.8]} 18. cxd4 {[%clk 0:02:32]}
18... Rfe8 {[%clk 0:02:04.3]} 19. Nd2 {[%clk 0:02:30.2]} 19... Rxe1+ {[%clk
0:01:43.9]} 20. Qxe1 {[%clk 0:02:29.3]} 20... Re8 {[%clk 0:01:44.8]} 21. Qd1
{[%clk 0:02:27.6]} 21... Qe6 {[%clk 0:01:39.3]} 22. Kg2 {[%clk 0:02:26]} 22...
Ne4 {[%clk 0:01:39.3]} 23. Nf3 {[%clk 0:02:24.8]} 23... Qd6 {[%clk 0:01:30.1]}
24. Ne5 {[%clk 0:02:10.3]} 24... f6 {[%clk 0:01:15]} 25. Qh5 {[%clk 0:01:57.6]}
25... Re6 {[%clk 0:00:51.8]} 26. Qf7+ {[%clk 0:01:53.5]} 26... Kh7 {[%clk
0:00:38.7]} 27. Nxd7 {[%clk 0:01:46.5]} 27... Re7 {[%clk 0:00:34.1]} 28. Nf8+
{[%clk 0:01:44.9]} 28... Kh8 {[%clk 0:00:33.2]} 29. Qxe7 {[%clk 0:01:42.3]}
29... Nxf2 {[%clk 0:00:18.4]} 30. Qxd6 {[%clk 0:01:41.2]} 1-0

[Event "Early-Titled-Tuesday-Blitz-October-03-2023"]
[Site "Chess.com"]
[Date "2023.10.03"]
[Round "10"]
[White "parintele_chess"]
[Black "LUISMIGUELOV"]
[Result "1-0"]
[WhiteElo "2240"]
[BlackElo "2142"]
[TimeControl "180+1"]
[EndTime "9:55:05 PDT"]
[Termination "parintele_chess won by resignation"]

1. d4 {[%clk 0:03:00.9]} 1... c6 {[%clk 0:03:00.3]} 2. c4 {[%clk 0:03:00.4]}
2... d5 {[%clk 0:03:00.8]} 3. Nc3 {[%clk 0:03:01.1]} 3... Nf6 {[%clk 0:03:00.6]}
4. e3 {[%clk 0:03:01.3]} 4... Bf5 {[%clk 0:02:57]} 5. Qb3 {[%clk 0:02:56.7]}
5... Qd7 {[%clk 0:02:54.7]} 6. Nf3 {[%clk 0:02:55.9]} 6... e6 {[%clk 0:02:48.1]}
7. Ne5 {[%clk 0:02:52.9]} 7... Qc7 {[%clk 0:02:48.1]} 8. Be2 {[%clk 0:02:45.6]}
8... Nbd7 {[%clk 0:02:47.6]} 9. f4 {[%clk 0:02:45.2]} 9... Nxe5 {[%clk
0:02:43.9]} 10. fxe5 {[%clk 0:02:46.1]} 10... Ne4 {[%clk 0:02:43.8]} 11. O-O
{[%clk 0:02:43]} 11... Be7 {[%clk 0:02:41.1]} 12. cxd5 {[%clk 0:02:31.8]} 12...
Nxc3 {[%clk 0:02:34.3]} 13. bxc3 {[%clk 0:02:32.1]} 13... cxd5 {[%clk
0:02:28.5]} 14. Bb5+ {[%clk 0:02:32.2]} 14... Kf8 {[%clk 0:02:24.3]} 15. Be2
{[%clk 0:02:15.2]} 15... h5 {[%clk 0:02:16.7]} 16. a4 {[%clk 0:01:49.1]} 16...
Rc8 {[%clk 0:02:13.6]} 17. a5 {[%clk 0:01:43.5]} 17... Rh6 {[%clk 0:02:03.6]}
18. e4 {[%clk 0:01:42.6]} 18... dxe4 {[%clk 0:01:57.3]} 19. Bxh6 {[%clk
0:01:42.3]} 19... gxh6 {[%clk 0:01:55.4]} 20. Bxh5 {[%clk 0:01:38.5]} 20... Qxc3
{[%clk 0:01:34.2]} 21. Qxc3 {[%clk 0:01:38.3]} 21... Rxc3 {[%clk 0:01:32.9]} 22.
g4 {[%clk 0:01:39]} 22... Rh3 {[%clk 0:01:14.5]} 23. gxf5 {[%clk 0:01:29.2]}
23... Rxh5 {[%clk 0:01:05.4]} 24. fxe6 {[%clk 0:01:28.9]} 24... Bg5 {[%clk
0:00:59.1]} 25. Rxf7+ {[%clk 0:01:24.5]} 25... Kg8 {[%clk 0:00:58.6]} 26. Rxb7
{[%clk 0:01:11.1]} 26... e3 {[%clk 0:00:56.6]} 27. Rc1 {[%clk 0:01:06.9]} 27...
e2 {[%clk 0:00:38.9]} 28. Rc8+ {[%clk 0:01:05.7]} 1-0

[Event "Early-Titled-Tuesday-Blitz-October-03-2023"]
[Site "Chess.com"]
[Date "2023.10.03"]
[Round "10"]
[White "Balla_Tamas"]
[Black "NovozhilovSemen"]
[Result "0-1"]
[WhiteElo "2457"]
[BlackElo "2598"]
[TimeControl "180+1"]
[EndTime "9:55:17 PDT"]
[Termination "NovozhilovSemen won by resignation"]

1. e4 {[%clk 0:03:00.9]} 1... e6 {[%clk 0:02:57.6]} 2. d4 {[%clk 0:03:00.7]}
2... d5 {[%clk 0:02:58]} 3. Nd2 {[%clk 0:03:01.1]} 3... c5 {[%clk 0:02:58]} 4.
exd5 {[%clk 0:03:01.4]} 4... exd5 {[%clk 0:02:58.2]} 5. Ngf3 {[%clk 0:03:00]}
5... Nc6 {[%clk 0:02:57.6]} 6. Bb5 {[%clk 0:03:00.3]} 6... Nf6 {[%clk
0:02:57.8]} 7. O-O {[%clk 0:02:53]} 7... Be7 {[%clk 0:02:55.2]} 8. Bxc6+ {[%clk
0:02:50.2]} 8... bxc6 {[%clk 0:02:55.2]} 9. dxc5 {[%clk 0:02:50.4]} 9... Bxc5
{[%clk 0:02:54.9]} 10. Re1+ {[%clk 0:02:49.9]} 10... Be6 {[%clk 0:02:55.2]} 11.
Nb3 {[%clk 0:02:45.1]} 11... Bb6 {[%clk 0:02:54]} 12. Bg5 {[%clk 0:02:36.2]}
12... O-O {[%clk 0:02:52]} 13. c3 {[%clk 0:02:34.7]} 13... h6 {[%clk 0:02:50.2]}
14. Bh4 {[%clk 0:02:33.8]} 14... g5 {[%clk 0:02:50.3]} 15. Bg3 {[%clk
0:02:32.5]} 15... Ne4 {[%clk 0:02:50.5]} 16. Nfd4 {[%clk 0:02:29.3]} 16... Bd7
{[%clk 0:02:49.3]} 17. Qh5 {[%clk 0:01:46.5]} 17... Kh7 {[%clk 0:02:39]} 18.
Rad1 {[%clk 0:01:40.7]} 18... f5 {[%clk 0:02:37.7]} 19. h4 {[%clk 0:01:21.3]}
19... g4 {[%clk 0:02:20.5]} 20. Bf4 {[%clk 0:00:47.1]} 20... Qf6 {[%clk
0:02:19.7]} 21. f3 {[%clk 0:00:47.4]} 21... Be8 {[%clk 0:02:05.9]} 22. Qxh6+
{[%clk 0:00:46.8]} 22... Qxh6 {[%clk 0:02:06.8]} 23. Bxh6 {[%clk 0:00:47.3]}
23... Kxh6 {[%clk 0:02:07.7]} 24. fxe4 {[%clk 0:00:47.7]} 24... fxe4 {[%clk
0:02:06.2]} 25. Rf1 {[%clk 0:00:41.1]} 25... Bd7 {[%clk 0:02:06.2]} 26. Kh2
{[%clk 0:00:33]} 26... Kh5 {[%clk 0:02:00.5]} 27. g3 {[%clk 0:00:32.9]} 27...
Kg6 {[%clk 0:01:51.2]} 28. Ne2 {[%clk 0:00:31]} 28... Rf3 {[%clk 0:01:50.3]} 29.
Nf4+ {[%clk 0:00:31]} 29... Kf5 {[%clk 0:01:48.1]} 30. Rxf3 {[%clk 0:00:26.8]}
30... gxf3 {[%clk 0:01:47.8]} 31. Nd4+ {[%clk 0:00:23.7]} 31... Bxd4 {[%clk
0:01:47.5]} 32. Rxd4 {[%clk 0:00:24.6]} 32... e3 {[%clk 0:01:38.8]} 33. Nd3
{[%clk 0:00:24.4]} 33... f2 {[%clk 0:01:34.9]} 34. Kg2 {[%clk 0:00:21.1]} 34...
Re8 {[%clk 0:01:31.4]} 35. Kf3 {[%clk 0:00:17.8]} 35... f1=Q+ {[%clk 0:01:30.3]}
0-1

[Event "Early-Titled-Tuesday-Blitz-October-03-2023"]
[Site "Chess.com"]
[Date "2023.10.03"]
[Round "10"]
[White "Witty_Alien"]
[Black "DanyKopy"]
[Result "0-1"]
[WhiteElo "2284"]
[BlackElo "2575"]
[TimeControl "180+1"]
[EndTime "9:55:18 PDT"]
[Termination "DanyKopy won on time"]

1. e4 {[%clk 0:03:00.9]} 1... c5 {[%clk 0:02:49.8]} 2. Nf3 {[%clk 0:02:50.8]}
2... Nc6 {[%clk 0:02:49.4]} 3. d4 {[%clk 0:02:51.1]} 3... cxd4 {[%clk
0:02:49.4]} 4. c3 {[%clk 0:02:51.8]} 4... e5 {[%clk 0:02:50]} 5. Bc4 {[%clk
0:02:51.5]} 5... Nf6 {[%clk 0:02:41]} 6. O-O {[%clk 0:02:19.7]} 6... Nxe4 {[%clk
0:02:31.2]} 7. Re1 {[%clk 0:01:40.1]} 7... d5 {[%clk 0:02:30.3]} 8. cxd4 {[%clk
0:01:34.6]} 8... dxc4 {[%clk 0:01:50.5]} 9. Rxe4 {[%clk 0:01:34.1]} 9... Be7
{[%clk 0:01:45.9]} 10. Nxe5 {[%clk 0:01:27.4]} 10... Nxe5 {[%clk 0:01:45.2]} 11.
Rxe5 {[%clk 0:01:27.7]} 11... O-O {[%clk 0:01:45.9]} 12. Nc3 {[%clk 0:01:12]}
12... Bf6 {[%clk 0:01:45.1]} 13. Rc5 {[%clk 0:01:12.4]} 13... Bxd4 {[%clk
0:01:41.2]} 14. Rxc4 {[%clk 0:01:11.3]} 14... Bxc3 {[%clk 0:01:40.2]} 15. Qc2
{[%clk 0:00:05.8]} 15... Bf6 {[%clk 0:01:29.4]} 16. Bf4 {[%clk 0:00:04.8]} 16...
Be6 {[%clk 0:01:29.1]} 17. Rd1 {[%clk 0:00:04.2]} 17... Qa5 {[%clk 0:01:12]} 18.
Ra4 {[%clk 0:00:01.6]} 18... Qf5 {[%clk 0:01:08.3]} 19. Qxf5 {[%clk 0:00:01.4]}
19... Bxf5 {[%clk 0:01:09.2]} 20. h3 {[%clk 0:00:01.1]} 20... Bc2 {[%clk
0:01:08.1]} 0-1

[Event "Early-Titled-Tuesday-Blitz-October-03-2023"]
[Site "Chess.com"]
[Date "2023.10.03"]
[Round "10"]
[White "Fradi82"]
[Black "Herzog2012"]
[Result "0-1"]
[WhiteElo "2330"]
[BlackElo "2500"]
[TimeControl "180+1"]
[EndTime "9:55:19 PDT"]
[Termination "Herzog2012 won by checkmate"]

1. e4 {[%clk 0:03:00.9]} 1... e5 {[%clk 0:02:59.1]} 2. Nf3 {[%clk 0:03:01]} 2...
Nc6 {[%clk 0:02:59.6]} 3. Bc4 {[%clk 0:03:01]} 3... Bc5 {[%clk 0:02:59.5]} 4. d3
{[%clk 0:03:01.3]} 4... Nf6 {[%clk 0:02:59.1]} 5. Bg5 {[%clk 0:03:00.3]} 5... d6
{[%clk 0:02:54.2]} 6. Nc3 {[%clk 0:02:58.4]} 6... h6 {[%clk 0:02:50.3]} 7. Bh4
{[%clk 0:02:58.2]} 7... Na5 {[%clk 0:02:17.9]} 8. Bxf6 {[%clk 0:02:27.2]} 8...
Qxf6 {[%clk 0:02:13.6]} 9. Nd5 {[%clk 0:02:27.5]} 9... Qd8 {[%clk 0:02:13.2]}
10. b4 {[%clk 0:02:23.5]} 10... Nxc4 {[%clk 0:02:05.9]} 11. bxc5 {[%clk
0:02:10.8]} 11... Na5 {[%clk 0:02:00.2]} 12. cxd6 {[%clk 0:02:09.4]} 12... cxd6
{[%clk 0:02:00.7]} 13. O-O {[%clk 0:02:06.4]} 13... O-O {[%clk 0:01:59.9]} 14.
Nd2 {[%clk 0:01:53.7]} 14... Be6 {[%clk 0:01:55.4]} 15. c4 {[%clk 0:01:45.1]}
15... Bxd5 {[%clk 0:01:51]} 16. exd5 {[%clk 0:01:36.2]} 16... b6 {[%clk
0:01:51.9]} 17. Ne4 {[%clk 0:01:31.7]} 17... Nb7 {[%clk 0:01:49.3]} 18. d4
{[%clk 0:01:24.4]} 18... exd4 {[%clk 0:01:45.8]} 19. Qxd4 {[%clk 0:01:25]} 19...
Nc5 {[%clk 0:01:44.3]} 20. Nxc5 {[%clk 0:01:20.2]} 20... bxc5 {[%clk 0:01:42.6]}
21. Qc3 {[%clk 0:01:18.3]} 21... Rb8 {[%clk 0:01:39.5]} 22. Rab1 {[%clk
0:01:17]} 22... Qd7 {[%clk 0:01:36]} 23. Qc2 {[%clk 0:01:14.9]} 23... Qg4 {[%clk
0:01:32.9]} 24. h3 {[%clk 0:01:08.2]} 24... Qd4 {[%clk 0:01:30.6]} 25. Rfd1
{[%clk 0:01:06.5]} 25... Rxb1 {[%clk 0:01:29.7]} 26. Rxb1 {[%clk 0:01:06]} 26...
Re8 {[%clk 0:01:29.5]} 27. Rb7 {[%clk 0:01:00.6]} 27... Re1+ {[%clk 0:01:28.1]}
28. Kh2 {[%clk 0:01:00]} 28... g6 {[%clk 0:01:19.2]} 29. Rxa7 {[%clk 0:00:57.5]}
29... Qf4+ {[%clk 0:01:11.8]} 30. g3 {[%clk 0:00:55.5]} 30... Qf3 {[%clk
0:01:10.9]} 31. Ra8+ {[%clk 0:00:36.7]} 31... Kh7 {[%clk 0:01:08.7]} 32. Qb2
{[%clk 0:00:34.7]} 32... Qh1# {[%clk 0:01:06.8]} 0-1

[Event "Early-Titled-Tuesday-Blitz-October-03-2023"]
[Site "Chess.com"]
[Date "2023.10.03"]
[Round "10"]
[White "APOKALIPSA13"]
[Black "taleslascando"]
[Result "1-0"]
[WhiteElo "2165"]
[BlackElo "2013"]
[TimeControl "180+1"]
[EndTime "9:55:44 PDT"]
[Termination "APOKALIPSA13 won on time"]

1. e4 {[%clk 0:02:48.3]} 1... e5 {[%clk 0:02:59.7]} 2. d4 {[%clk 0:02:48.4]}
2... exd4 {[%clk 0:02:53.8]} 3. Qxd4 {[%clk 0:02:47.9]} 3... Nc6 {[%clk
0:02:54.2]} 4. Qe3 {[%clk 0:02:47.5]} 4... Nf6 {[%clk 0:02:50.8]} 5. Bd2 {[%clk
0:02:47]} 5... b6 {[%clk 0:02:41.9]} 6. h3 {[%clk 0:02:42.1]} 6... Bc5 {[%clk
0:02:41.8]} 7. Qg5 {[%clk 0:02:39.6]} 7... Bxf2+ {[%clk 0:02:15.6]} 8. Kd1
{[%clk 0:02:39.2]} 8... Nxe4 {[%clk 0:01:56]} 9. Qxg7 {[%clk 0:02:36]} 9... Qf6
{[%clk 0:01:54.4]} 10. Qxf6 {[%clk 0:02:30.7]} 10... Nxf6 {[%clk 0:01:54.5]} 11.
Nf3 {[%clk 0:02:29.6]} 11... Ne4 {[%clk 0:01:43.2]} 12. Bd3 {[%clk 0:02:25]}
12... Ng3 {[%clk 0:01:34.9]} 13. Re1+ {[%clk 0:02:16.9]} 13... Bxe1 {[%clk
0:01:32.9]} 14. Bxe1 {[%clk 0:02:17.5]} 14... Nh5 {[%clk 0:01:27.3]} 15. Bc3
{[%clk 0:02:17.3]} 15... O-O {[%clk 0:01:20.9]} 16. Ng5 {[%clk 0:02:06.9]} 16...
Re8 {[%clk 0:00:44.3]} 17. Nxh7 {[%clk 0:01:58.5]} 17... d5 {[%clk 0:00:14.7]}
18. g4 {[%clk 0:01:56.7]} 18... f5 {[%clk 0:00:12.3]} 19. Ng5 {[%clk 0:01:25.9]}
19... fxg4 {[%clk 0:00:11.2]} 20. Bg6 {[%clk 0:01:17.5]} 20... Ng7 {[%clk
0:00:07.9]} 21. Bxg7 {[%clk 0:01:10.6]} 21... gxh3 {[%clk 0:00:04.7]} 22. Kd2
{[%clk 0:00:58.6]} 22... h2 {[%clk 0:00:03.8]} 23. Nc3 {[%clk 0:00:54]} 23...
Re7 {[%clk 0:00:01.6]} 24. Bf6 {[%clk 0:00:51.4]} 1-0